bitfinex/quotes_ETHUSD_20240828
["timestamp","ask_amount","ask_price","bid_price","bid_amount"]
[1724811007524,1.20104703,2451.4,2450.4,7.37]
[1724811011320,5.54,2451.3,2450.4,7.37]
[1724811011527,0.77611742,2451.2,2450.4,7.37]
[1724811018957,0.77611742,2451.2,2450.5,9.9234]
[1724811019747,0.52891353,2451.4,2450.5,9.9234]
[1724811022721,0.52891353,2451.4,2450.0,668.81978917]
[1724811022722,12.43,2452.7,2450.7,9.99]
[1724811022871,12.43,2452.7,2450.6,0.08159405]
[1724811022872,1.6266853,2451.4,2450.6,0.50328058]
[1724811023033,1.65490043,2451.3,2450.7,0.08159876]
[1724811023233,0.10199472,2451.3,2450.7,0.08159876]
[1724811023435,0.79351611,2451.7,2450.7,0.08159876]
[1724811023668,0.10199255,2451.8,2450.8,9.31459404]
[1724811024176,0.10197724,2452.1,2450.8,9.31459404]
[1724811024672,4.99,2452.2,2450.8,9.31459404]
[1724811024673,0.10196726,2452.2,2450.8,9.31459404]
[1724811024845,0.10196726,2452.2,2451.0,9.233]
[1724811025175,0.10196726,2452.2,2451.1,0.08156784]
[1724811025675,0.79347661,2452.4,2451.2,9.233]
[1724811025980,0.79347661,2452.4,2451.3,1.01301525]
[1724811025981,0.61084529,2452.4,2451.3,1.01301525]
[1724811027046,0.42693617,2452.5,2451.4,9.233]
[1724811027244,1.66926577,2452.8,2451.5,9.233]
[1724811027245,0.691517,2452.8,2451.5,9.233]
[1724811027767,0.101935,2452.9,2451.5,9.233]
[1724811028097,1.07968377,2452.9,2451.5,9.233]
[1724811028645,0.97774877,2452.8,2451.5,9.233]
[1724811028907,0.46234845,2452.7,2451.6,0.08156607]
[1724811029179,0.46234845,2452.7,2451.5,9.233]
[1724811029400,0.55,2452.6,2451.5,9.233]
[1724811029690,0.10195096,2452.5,2451.5,9.233]
[1724811032053,0.10195096,2452.5,2451.5,10.04455221]
[1724811032276,0.36039086,2452.7,2451.5,10.04455221]
[1724811032277,0.36039086,2452.7,2451.6,0.08155921]
[1724811032588,0.10195097,2452.8,2451.7,9.1435]
[1724811032748,0.5,2452.7,2451.8,0.08153405]
[1724811032947,0.10194101,2452.6,2451.8,0.74463083]
[1724811033248,0.10194101,2452.9,2451.7,9.1435]
[1724811035051,0.55,2452.8,2451.7,9.1435]
[1724811035384,0.1019411,2452.7,2451.7,9.1435]
[1724811035590,0.55,2452.6,2451.7,9.1435]
[1724811035789,0.10194822,2452.5,2451.7,9.1435]
[1724811036355,6.10379305,2452.4,2451.3,9.6538]
[1724811036670,0.10197197,2452.3,2451.3,9.6538]
[1724811036870,0.55,2452.2,2451.3,9.6538]
[1724811037072,0.10196985,2452.1,2451.3,9.6538]
[1724811038105,0.10196985,2452.1,2451.4,0.08157265]
[1724811038395,0.10196985,2452.1,2451.3,9.6538]
[1724811039397,0.10196985,2452.1,2451.3,10.61918]
[1724811041199,0.10196985,2452.1,2451.4,0.08157271]
[1724811041504,0.10196985,2452.1,2451.3,10.61918]
[1724811041654,0.10196985,2452.1,2451.3,9.6538]
[1724811041859,7.99,2452.2,2451.4,0.08157272]
[1724811042284,4.99,2452.7,2451.4,0.08157272]
[1724811042285,7.44,2452.5,2451.4,0.08157272]
[1724811042702,7.44,2452.5,2451.5,9.5]
[1724811042874,7.44,2452.5,2451.7,9.0563]
[1724811043200,0.1019426,2452.4,2451.7,9.0563]
[1724811043567,7.44,2452.5,2451.7,9.0563]
[1724811047187,0.10194495,2452.4,2451.7,9.0563]
[1724811047390,0.10194495,2452.4,2451.2,7.37]
[1724811047391,0.85613945,2452.4,2451.3,9.5446]
[1724811047572,0.55,2452.3,2451.3,9.5446]
[1724811047763,0.10196937,2452.2,2451.3,9.5446]
[1724811047960,0.55,2452.1,2451.3,9.5446]
[1724811048163,0.10197542,2452.0,2451.3,9.5446]
[1724811048389,0.10197542,2452.0,2450.3,9.642]
[1724811048561,6.06422481,2451.9,2450.4,0.9642]
[1724811048767,0.10199206,2451.8,2450.4,0.9642]
[1724811048999,0.55,2451.7,2450.4,0.9642]
[1724811049302,0.65199207,2451.7,2450.4,0.9642]
[1724811049473,0.65199207,2451.7,2450.5,1.06062]
[1724811050909,0.10200044,2451.6,2450.7,9.6712]
[1724811051075,2.0,2452.2,2450.8,0.08158558]
[1724811051269,1.35098198,2452.1,2450.8,0.97527856]
[1724811051804,0.80098198,2452.1,2450.9,0.08158567]
[1724811051969,0.80098198,2452.1,2451.0,9.6712]
[1724811052331,0.2800982,2452.0,2451.1,0.08158]
[1724811052474,0.10197501,2451.9,2451.1,0.08158]
[1724811053107,0.80097503,2452.1,2451.1,0.08158]
[1724811053299,0.10197503,2452.2,2451.2,9.0446]
[1724811053550,7.44,2452.5,2451.4,9.9619]
[1724811053678,0.10195002,2452.4,2451.5,0.08155692]
[1724811054091,0.10195002,2452.4,2451.4,9.9619]
[1724811054300,0.85614502,2452.4,2451.4,9.9619]
[1724811054793,0.55,2452.3,2451.4,9.9619]
[1724811055030,0.10196972,2452.2,2451.4,9.9619]
[1724811055198,0.10196972,2452.2,2451.5,0.08157569]
[1724811055506,0.85615474,2452.4,2451.5,0.08157569]
[1724811055667,0.85615474,2452.4,2451.5,1.08592326]
[1724811057515,0.85615474,2452.4,2451.5,0.08157569]
[1724811057602,0.85615474,2452.4,2451.4,9.9619]
[1724811057799,0.55,2452.3,2451.4,9.9619]
[1724811058000,0.10196379,2452.2,2451.4,9.9619]
[1724811058211,0.10196379,2452.2,2451.5,0.08157095]
[1724811058732,0.10196379,2452.2,2451.4,9.9619]
[1724811058891,0.55,2452.1,2451.4,9.9619]
[1724811059094,0.10197125,2452.0,2451.4,9.9619]
[1724811059613,0.91116838,2452.0,2451.4,9.9619]
[1724811059985,7.44,2452.2,2451.5,0.081577]
[1724811060184,0.10196073,2452.1,2451.5,0.081577]
[1724811060797,0.10196073,2452.1,2451.5,0.08157107]
[1724811061729,7.44,2452.2,2451.5,0.08157107]
[1724811062105,7.44,2452.2,2451.4,9.9619]
[1724811062322,7.44,2452.2,2451.4,10.46472056]
[1724811063621,7.44,2452.2,2451.5,0.08156654]
[1724811066250,7.44,2452.2,2451.4,10.46472056]
[1724811067214,7.44,2452.2,2451.4,9.9619]
[1724811067654,0.10195859,2452.1,2451.4,9.9619]
[1724811068518,0.55,2452.0,2451.0,9.5885]
[1724811068876,0.55,2452.0,2450.1,9.5885]
[1724811068877,2.0,2451.7,2450.1,9.5885]
[1724811069068,0.65200304,2451.6,2450.1,13.60343556]
[1724811069220,0.65200304,2451.6,2450.2,9.5885]
[1724811069419,0.2652003,2451.5,2450.3,1.36034356]
[1724811069734,0.10200296,2451.4,2450.4,9.4439]
[1724811070748,4.99,2451.2,2450.4,9.4439]
[1724811070935,0.10201418,2451.1,2450.4,9.4439]
[1724811071116,0.10201418,2451.1,2450.5,0.08160929]
[1724811071321,0.10201418,2451.1,2450.5,0.95255093]
[1724811071547,0.10201418,2451.1,2450.4,9.4439]
[1724811072557,0.65201034,2451.3,2450.5,0.08160827]
[1724811072732,5.5015,2451.9,2450.5,0.08160827]
[1724811072921,0.55,2451.8,2450.5,0.08160827]
[1724811073113,0.10200001,2451.7,2450.5,0.08160827]
[1724811073328,0.55,2451.6,2450.5,0.08160827]
[1724811073545,0.10199928,2451.5,2450.5,0.08160827]
[1724811073755,0.10199928,2451.5,2450.5,1.0341591]
[1724811074138,1.1,2451.6,2450.5,1.0341591]
[1724811074339,0.10200002,2451.5,2450.5,1.0341591]
[1724811075121,0.10200002,2451.5,2450.6,9.0009]
[1724811075422,0.10200002,2451.5,2450.7,1.00350591]
[1724811075937,0.10200002,2451.5,2450.7,1.08510591]
[1724811076144,0.10200002,2451.5,2450.6,9.0009]
[1724811076543,7.54200002,2451.5,2450.6,9.0009]
[1724811076970,0.55,2451.4,2450.6,9.0009]
[1724811077055,0.10200999,2451.3,2450.6,9.0009]
[1724811077371,0.55,2451.2,2450.6,9.0009]
[1724811077529,0.10200998,2451.1,2450.6,9.0009]
[1724811077930,0.10200998,2451.1,2450.1,9.5131]
[1724811078131,0.10200998,2451.1,2450.1,13.52803556]
[1724811078956,0.55,2451.0,2450.1,9.5131]
[1724811079161,0.10202416,2450.9,2450.1,9.5131]
[1724811079573,0.55,2450.8,2450.1,9.5131]
[1724811079770,0.10203294,2450.7,2450.1,9.5131]
[1724811079962,0.10203294,2450.7,2450.0,656.39978917]
[1724811080201,0.66623623,2450.7,2450.0,656.39978917]
[1724811081777,0.10203275,2450.9,2450.2,9.5885]
[1724811081959,0.10201645,2451.3,2450.3,0.08161316]
[1724811082295,0.10201645,2451.2,2450.3,0.08161316]
[1724811082590,0.10201645,2451.2,2450.2,9.5885]
[1724811083194,0.55,2451.1,2450.2,9.5885]
[1724811083417,0.1020164,2451.0,2450.2,9.5885]
[1724811084495,0.55,2450.9,2450.2,9.5885]
[1724811084794,0.10202881,2450.8,2450.2,9.5885]
[1724811087579,0.10202881,2450.8,2450.0,656.39978917]
[1724811087895,0.55,2450.7,2450.0,656.39978917]
[1724811088094,0.10203399,2450.6,2450.0,656.39978917]
[1724811088264,4.99,2450.5,2450.0,656.39978917]
[1724811088465,0.10204396,2450.4,2450.0,656.39978917]
[1724811091358,0.55,2450.3,2450.0,656.39978917]
[1724811091561,0.10204553,2450.2,2450.0,656.39978917]
[1724811092788,0.66625008,2450.2,2450.0,656.39978917]
[1724811093862,0.10204549,2450.5,2450.0,656.39978917]
[1724811095507,0.42696743,2450.6,2450.1,9.8106]
[1724811096498,0.10204128,2450.9,2450.2,0.0816238]
[1724811096886,0.10202975,2451.2,2450.3,9.5019]
[1724811096894,0.10202975,2451.2,2450.5,9.5019]
[1724811097115,0.4269958,2451.3,2450.6,0.08160236]
[1724811097358,0.4269958,2451.3,2450.2,9.5019]
[1724811097608,0.4269958,2451.3,2450.4,9.5019]
[1724811097779,0.4269958,2451.3,2450.5,9.58349381]
[1724811097980,0.4269958,2451.3,2450.6,0.95834938]
[1724811098197,0.4269958,2451.3,2450.8,9.1684]
[1724811098506,0.1019923,2451.7,2450.9,0.08159]
[1724811099170,0.1019923,2451.7,2450.8,9.1684]
[1724811099790,2.0,2451.6,2450.8,9.1684]
[1724811099974,0.65199914,2451.5,2450.8,10.18107494]
[1724811101281,0.65199914,2451.5,2450.8,9.1684]
[1724811108120,0.10199914,2451.5,2450.8,9.1684]
[1724811108317,7.86639404,2451.6,2450.9,9.8335]
[1724811108490,7.44,2451.6,2451.0,0.98335]
[1724811108699,7.44,2451.8,2451.1,9.7519]
[1724811108906,7.44,2451.8,2450.2,12.42]
[1724811108907,0.42699962,2452.0,2451.2,9.3077]
[1724811109099,0.42699962,2452.0,2451.3,10.23847]
[1724811109323,7.44,2452.6,2451.5,9.3077]
[1724811109625,0.52898818,2452.5,2451.7,9.3077]
[1724811109829,0.52898818,2452.5,2451.8,9.38925806]
[1724811110174,0.42704049,2452.5,2452.0,9.9323]
[1724811110328,0.42704049,2452.5,2452.1,0.08155088]
[1724811110511,0.10193871,2452.7,2452.1,0.08155088]
[1724811110687,0.85613258,2452.7,2452.1,0.08155088]
[1724811111188,0.75419387,2452.7,2452.1,0.08155088]
[1724811111385,7.44,2453.0,2452.2,9.7957]
[1724811111833,0.10192891,2452.9,2452.2,9.7957]
[1724811112631,7.44,2453.0,2452.4,9.2167]
[1724811112816,7.44,2453.0,2452.5,0.0815349]
[1724811113018,7.44,2453.0,2452.6,9.2167]
[1724811113933,0.4269008,2453.5,2452.7,0.08153527]
[1724811114147,0.10190948,2453.4,2452.8,9.2167]
[1724811114431,0.4269008,2453.5,2452.9,0.08152758]
[1724811114605,0.10190959,2453.4,2452.9,0.08152758]
[1724811114805,0.4269008,2453.5,2453.0,9.2167]
[1724811115096,0.4269008,2453.5,2451.8,0.737]
[1724811115097,0.4269008,2453.5,2453.2,9.2167]
[1724811115302,0.10188183,2454.3,2453.4,9.2167]
[1724811115504,0.42675391,2454.5,2453.6,9.2167]
[1724811115717,0.10186944,2454.4,2453.6,9.2167]
[1724811115918,0.57264399,2454.4,2453.6,9.2167]
[1724811116701,2.57264399,2454.4,2453.6,9.2167]
[1724811116924,0.78904135,2454.3,2453.6,9.2167]
[1724811117226,0.57266642,2454.2,2453.6,9.2167]
[1724811117432,2.0,2454.1,2453.6,9.2167]
[1724811117605,0.10189418,2454.0,2453.6,9.2167]
[1724811117804,0.55,2453.9,2453.6,9.2167]
[1724811118005,0.10189419,2453.8,2452.4,9.4309]
[1724811118214,0.10189419,2453.8,2452.6,9.4309]
[1724811118215,0.55,2453.7,2452.6,9.4309]
[1724811118432,0.10190463,2453.6,2452.6,9.4309]
[1724811119005,0.10190463,2453.6,2452.7,0.08152361]
[1724811119205,0.10190463,2453.6,2452.8,9.5387]
[1724811119928,0.91109509,2453.6,2452.8,9.5387]
[1724811120605,0.55,2453.5,2452.8,9.5387]
[1724811120808,0.10191738,2453.4,2452.8,9.5387]
[1724811121840,0.10191168,2453.5,2452.8,9.5387]
[1724811122141,0.8845886,2453.5,2452.8,9.5387]
[1724811122742,2.8845886,2453.5,2452.8,9.5387]
[1724811122905,0.55,2453.4,2452.8,9.5387]
[1724811123100,0.10192388,2453.3,2452.8,9.5387]
[1724811123853,0.10191942,2453.4,2452.8,9.5387]
[1724811124270,7.44,2453.7,2453.0,9.6018]
[1724811124556,0.10190176,2453.6,2453.0,9.6018]
[1724811124718,7.44,2453.7,2453.1,0.08152141]
[1724811124909,7.44,2453.7,2453.2,9.849]
[1724811125441,0.34927329,2454.6,2453.4,9.849]
[1724811125442,7.44,2454.3,2453.4,9.849]
[1724811125636,2.42675391,2454.5,2453.5,9.34800671]
[1724811125637,0.42675391,2454.5,2453.5,9.34800671]
[1724811125891,0.10187284,2454.4,2453.5,9.34800671]
[1724811126331,0.10187284,2454.4,2453.5,9.2665]
[1724811126535,0.10187284,2454.4,2453.6,0.081506]
[1724811126926,0.10187284,2454.4,2453.5,9.2665]
[1724811128113,0.55,2454.3,2453.5,9.2665]
[1724811128446,0.10188151,2454.2,2453.5,9.2665]
[1724811129025,0.10188275,2454.3,2453.6,0.0815062]
[1724811129245,0.10188275,2454.3,2453.7,9.5224]
[1724811133359,0.10188545,2454.2,2453.7,9.5224]
[1724811133516,2.0,2454.0,2453.4,9.9809]
[1724811133729,0.90690319,2453.9,2453.4,9.9809]
[1724811134627,0.90690319,2453.9,2452.5,9.6095]
[1724811134628,0.52218489,2453.8,2452.5,9.6095]
[1724811134865,7.44,2453.6,2452.7,9.6095]
[1724811135023,0.10191252,2453.5,2452.8,0.08153001]
[1724811137057,0.10191252,2453.5,2452.7,9.6095]
[1724811137237,0.85610377,2453.5,2452.7,9.6095]
[1724811139092,0.85610377,2453.5,2452.8,0.08153268]
[1724811139093,0.10191252,2453.5,2452.8,0.08153268]
[1724811139269,0.10191252,2453.5,2452.9,9.9581]
[1724811139481,0.10191252,2453.5,2453.0,0.99581]
[1724811139672,0.10191252,2453.5,2452.9,9.9581]
[1724811140253,7.86673824,2453.6,2453.1,9.9581]
[1724811140644,0.10190062,2453.5,2453.1,9.9581]
[1724811140843,0.89876451,2453.5,2453.1,9.9581]
[1724811141038,0.89876548,2453.5,2453.1,9.9581]
[1724811144075,0.79686389,2453.5,2453.1,9.9581]
[1724811144274,7.86673824,2453.6,2453.1,9.9581]
[1724811145049,0.42673824,2453.6,2453.1,9.9581]
[1724811147879,0.1019,2453.5,2453.1,9.9581]
[1724811148257,0.42673824,2453.6,2453.1,9.9581]
[1724811148444,0.10190137,2453.5,2453.1,9.9581]
[1724811152879,0.10190137,2453.5,2452.8,9.7871]
[1724811153196,0.10190137,2453.5,2452.9,0.08152665]
[1724811154263,0.10190137,2453.5,2452.8,11.50281]
[1724811154792,0.10190137,2453.5,2452.9,0.08152678]
[1724811155165,0.10190137,2453.5,2453.0,9.4392]
[1724811155372,0.42673824,2453.6,2453.2,9.4392]
[1724811155552,0.10190853,2453.9,2452.7,7.37]
[1724811155553,0.10188641,2453.9,2453.4,9.5954]
[1724811160366,7.44,2454.0,2453.4,9.5954]
[1724811160667,9.44,2454.3,2453.4,9.5954]
[1724811160992,1.57255108,2454.2,2453.4,9.5954]
[1724811162360,0.55,2454.1,2453.4,9.5954]
[1724811162554,0.1018993,2454.0,2453.4,9.5954]
[1724811162791,0.1018993,2454.0,2453.4,10.55494]
[1724811162958,0.1018993,2454.0,2453.4,9.5954]
[1724811163557,0.10188689,2454.1,2453.4,9.5954]
[1724811164183,0.55,2454.0,2453.4,9.5954]
[1724811164386,0.10189767,2453.9,2453.4,9.5954]
[1724811165601,0.10189737,2454.1,2453.4,9.5954]
[1724811165934,0.52304057,2454.1,2453.4,9.5954]
[1724811166995,0.55,2454.0,2453.4,9.5954]
[1724811167114,0.10189812,2453.9,2453.4,9.5954]
[1724811169317,0.10073543,2453.9,2453.4,9.5954]
[1724811170105,0.55,2453.8,2453.1,9.6612]
[1724811170313,0.10074468,2453.7,2453.1,9.6612]
[1724811172202,0.10074468,2453.7,2452.1,12.42]
[1724811172203,0.10074468,2453.7,2452.8,9.7591]
[1724811172427,0.55,2453.6,2452.8,9.7591]
[1724811172636,0.10075235,2453.5,2452.8,9.7591]
[1724811174283,0.10075235,2453.5,2452.9,0.88580429]
[1724811174430,0.10075218,2453.6,2452.9,0.96733619]
[1724811174629,0.10075218,2453.6,2453.0,9.1338]
[1724811175808,0.10074421,2453.8,2453.0,9.1338]
[1724811180876,0.10073923,2453.7,2453.0,9.1338]
[1724811181192,0.58810991,2453.7,2453.0,9.1338]
[1724811181334,0.55,2453.6,2452.5,9.2122]
[1724811181530,0.10075171,2453.5,2452.5,9.2122]
[1724811181772,1.02077455,2453.4,2452.5,9.2122]
[1724811181935,0.10076662,2453.3,2452.5,9.2122]
[1724811182134,0.10076662,2453.2,2452.5,9.2122]
[1724811183065,2.10076654,2453.3,2452.5,9.2122]
[1724811183377,0.55,2453.4,2452.0,9.6669]
[1724811183378,2.0,2453.0,2452.0,9.6669]
[1724811183772,0.10078442,2452.9,2452.0,9.6669]
[1724811183974,0.55,2452.8,2452.0,9.6669]
[1724811184266,0.10078437,2452.7,2452.0,9.6669]
[1724811184476,0.55,2452.6,2450.9,9.7841]
[1724811184641,0.10079391,2452.5,2450.9,9.7841]
[1724811186633,0.42689595,2452.8,2451.1,9.0246]
[1724811186846,0.10193725,2452.9,2451.3,9.0246]
[1724811187086,0.10193725,2452.9,2451.5,9.0246]
[1724811187307,0.10193725,2452.9,2451.4,0.63154982]
[1724811187308,0.61113098,2452.9,2451.6,9.10614982]
[1724811187776,0.48737068,2452.8,2451.6,9.0246]
[1724811187974,0.65195345,2452.7,2451.6,9.0246]
[1724811188275,0.65195345,2452.7,2451.6,9.55922273]
[1724811188846,4.99,2452.6,2451.6,9.55922273]
[1724811189067,0.10195479,2452.5,2451.6,9.55922273]
[1724811192647,0.10195479,2452.5,2451.6,9.0246]
[1724811193052,0.10195479,2452.5,2451.3,17.67775498]
[1724811193347,2.55,2452.4,2451.3,9.9446]
[1724811193548,4.99,2452.2,2451.3,9.9446]
[1724811193786,0.10197348,2452.1,2451.3,9.9446]
[1724811195793,0.10197328,2452.2,2451.4,0.08157863]
[1724811195976,7.44,2452.3,2451.5,9.767]
[1724811196294,7.44,2452.3,2451.6,0.0815646]
[1724811197349,0.10195567,2452.2,2451.6,0.0815646]
[1724811197702,0.10195567,2452.2,2451.6,1.06642106]
[1724811198558,0.10195567,2452.2,2451.2,9.3293]
[1724811199398,0.09943926,2452.2,2451.2,9.3293]
[1724811201637,0.55,2452.1,2451.2,9.3293]
[1724811201814,0.09945883,2452.0,2451.2,9.3293]
[1724811201970,0.09945883,2452.0,2451.2,11.07293]
[1724811202582,5.08945883,2452.0,2451.2,11.07293]
[1724811203674,5.08945883,2452.0,2450.9,9.8847]
[1724811205211,0.09945883,2452.0,2451.0,0.081584]
[1724811205512,0.09945883,2452.0,2451.1,9.855]
[1724811205672,0.09945883,2452.0,2451.2,0.08157996]
[1724811206817,4.99,2451.9,2451.1,9.855]
[1724811207102,0.09946508,2451.8,2451.1,9.855]
[1724811207408,0.09946508,2451.8,2451.1,10.8405]
[1724811207786,0.09946508,2451.8,2451.1,9.855]
[1724811208036,0.09946508,2451.8,2450.8,16.6967]
[1724811208985,0.09946508,2451.8,2450.8,9.3267]
[1724811209727,2.09947178,2451.7,2450.8,9.3267]
[1724811209874,0.55,2451.6,2450.6,7.37]
[1724811210073,5.08948167,2451.5,2450.5,9.3694]
[1724811210323,0.81638159,2451.4,2450.6,0.93694]
[1724811210480,0.09948165,2451.3,2450.5,9.3694]
[1724811212505,0.09948165,2451.3,2450.0,656.39978917]
[1724811212811,4.99,2451.1,2450.1,9.7825]
[1724811212999,0.6084521,2451.0,2450.0,656.39978917]
[1724811214693,5.6082028,2450.9,2450.0,654.16496116]
[1724811214882,6.99,2450.1,2450.0,654.16496116]
[1724811215098,15.309382,2450.1,2450.0,654.16496116]
[1724811215423,7.54,2450.1,2450.0,654.16496116]
[1724811215483,7.54,2450.1,2450.0,653.73806116]
[1724811215484,9.713113,2450.1,2450.0,653.73806116]
[1724811216202,10.27958934,2450.1,2450.0,653.73806116]
[1724811217293,8.10647634,2450.1,2450.0,653.73806116]
[1724811217495,10.82509234,2450.1,2450.0,653.73806116]
[1724811217916,5.55647634,2450.1,2450.0,653.73806116]
[1724811218119,4.99,2450.1,2450.0,653.73806116]
[1724811218416,7.09204917,2450.1,2450.0,653.73806116]
[1724811218713,7.64204917,2450.1,2450.0,653.73806116]
[1724811220634,14.09324117,2450.1,2450.0,653.73806116]
[1724811220783,14.51965719,2450.1,2450.0,653.73806116]
[1724811220986,15.90251512,2450.1,2450.0,653.73806116]
[1724811222114,9.45132312,2450.1,2450.0,653.73806116]
[1724811223179,12.85741512,2450.1,2450.0,653.73806116]
[1724811223417,12.56093512,2450.1,2450.0,653.73806116]
[1724811224119,12.06093512,2450.1,2450.0,653.73806116]
[1724811224333,9.45132312,2450.1,2450.0,653.73806116]
[1724811224513,11.66893512,2450.1,2450.0,653.73806116]
[1724811225086,9.45132312,2450.1,2450.0,653.73806116]
[1724811225292,4.46132312,2450.1,2450.0,653.73806116]
[1724811225494,4.35927395,2450.1,2450.0,653.73806116]
[1724811226090,6.79988595,2450.1,2450.0,653.73806116]
[1724811226486,4.35927395,2450.1,2450.0,653.73806116]
[1724811226731,0.42641602,2450.1,2450.0,653.73806116]
[1724811226984,0.10204485,2450.3,2450.0,653.73806116]
[1724811240636,2.10204485,2450.3,2450.0,653.73806116]
[1724811240843,4.99,2450.1,2450.0,653.73806116]
[1724811241171,10.60841204,2450.1,2450.0,653.73806116]
[1724811241836,3.21841204,2450.1,2450.0,653.73806116]
[1724811242001,0.65205304,2450.1,2450.0,653.73806116]
[1724811242418,0.52842943,2450.2,2450.0,653.73806116]
[1724811243205,0.78127237,2450.2,2450.0,653.73806116]
[1724811243911,0.52842943,2450.2,2450.0,653.73806116]
[1724811244249,0.10204874,2450.2,2450.0,653.73806116]
[1724811257686,0.52830035,2450.4,2450.0,653.73806116]
[1724811257835,0.4262576,2450.4,2450.1,9.41492547]
[1724811258057,12.28,2450.8,2450.1,9.41492547]
[1724811258058,0.51567978,2451.0,2450.3,9.3333]
[1724811258276,0.10201311,2450.9,2450.3,9.3333]
[1724811258571,2.0,2450.7,2450.0,653.73806116]
[1724811258873,0.1020377,2450.6,2450.0,663.07136116]
[1724811265552,0.55,2450.5,2450.0,653.73806116]
[1724811265745,0.10204215,2450.4,2450.0,653.73806116]
[1724811267071,2.10204215,2450.4,2450.0,653.73806116]
[1724811267270,0.26520421,2450.3,2450.0,653.73806116]
[1724811267484,0.10204367,2450.2,2450.0,653.73806116]
[1724811267690,0.55,2450.5,2450.0,653.73806116]
[1724811267900,13.752737,2450.4,2450.0,653.73806116]
[1724811268119,0.55,2450.5,2450.0,653.73806116]
[1724811268250,1.33027026,2450.5,2450.0,653.73806116]
[1724811268762,0.42641927,2450.4,2450.0,653.73806116]
[1724811277405,2.55,2450.3,2450.0,653.73806116]
[1724811278795,0.55,2450.3,2450.0,653.73806116]
[1724811284610,42.711788,2450.2,2450.0,653.73806116]
[1724811284817,0.55,2450.1,2450.0,653.73806116]
[1724811285124,21.325903,2450.1,2450.0,653.73806116]
[1724811285283,32.534971,2450.1,2450.0,653.73806116]
[1724811285532,35.74495018,2450.1,2450.0,653.73806116]
[1724811285764,34.21678118,2450.1,2450.0,653.73806116]
[1724811286096,24.16167018,2450.1,2450.0,651.43520506]
[1724811286311,22.53047518,2450.1,2450.0,651.43520506]
[1724811298101,22.53047518,2450.1,2450.0,647.19520506]
[1724811298416,22.53047518,2450.1,2450.0,642.95520506]
[1724811298594,22.53047518,2450.1,2450.0,640.83520506]
[1724811298812,22.53047518,2450.1,2450.0,638.71520506]
[1724811299010,3.06576418,2450.1,2450.0,624.69220506]
[1724811299334,0.42576418,2450.1,2450.0,609.85220506]
[1724811299548,0.42576418,2450.1,2450.0,613.86714062]
[1724811300327,0.42576418,2450.1,2450.0,609.85220506]
[1724811304441,2.81723118,2450.1,2450.0,609.85220506]
[1724811304596,8.25851018,2450.1,2450.0,609.85220506]
[1724811304801,13.23996718,2450.1,2450.0,609.85220506]
[1724811305107,8.60225318,2450.1,2450.0,600.55520506]
[1724811305321,9.6624785,2450.1,2450.0,600.55520506]
[1724811305699,0.97576418,2450.1,2450.0,609.99600506]
[1724811305933,5.14249118,2450.1,2450.0,609.99600506]
[1724811306143,7.64657018,2450.1,2450.0,609.99600506]
[1724811306304,8.87060718,2450.1,2450.0,609.99600506]
[1724811306631,6.75683218,2450.1,2450.0,609.99600506]
[1724811306796,7.30683218,2450.1,2450.0,609.99600506]
[1724811307002,8.2375154,2450.1,2450.0,609.99600506]
[1724811307912,8.2375154,2450.1,2450.0,600.55520506]
[1724811310303,7.30683218,2450.1,2450.0,600.55520506]
[1724811311566,3.73216218,2450.1,2450.0,600.55520506]
[1724811311740,0.42576418,2450.1,2450.0,610.20510506]
[1724811314047,5.96483018,2450.1,2450.0,610.20510506]
[1724811314216,13.7248922,2450.1,2450.0,610.20510506]
[1724811314417,8.5260952,2450.1,2450.0,610.20510506]
[1724811314640,5.4139522,2450.1,2450.0,610.20510506]
[1724811314953,5.9639522,2450.1,2450.0,610.20510506]
[1724811315156,0.42576418,2450.1,2450.0,610.20510506]
[1724811322154,5.13348118,2450.1,2450.0,610.20510506]
[1724811322450,5.68348118,2450.1,2450.0,600.55520506]
[1724811323356,0.97576418,2450.1,2450.0,610.28740506]
[1724811323628,0.42576418,2450.1,2450.0,610.28740506]
[1724811324043,5.47124718,2450.1,2450.0,610.28740506]
[1724811324264,6.11318718,2450.1,2450.0,610.28740506]
[1724811324459,4.57724718,2450.1,2450.0,610.28740506]
[1724811326176,4.34067818,2450.1,2450.0,610.28740506]
[1724811326374,0.42576418,2450.1,2450.0,610.28740506]
[1724811328377,7.44,2450.5,2450.0,604.57014062]
[1724811328574,7.86596211,2450.5,2450.1,9.2853]
[1724811329418,0.42596211,2450.5,2450.1,9.2853]
[1724811333769,0.55,2450.4,2450.1,9.2853]
[1724811334393,5.875609,2450.3,2450.1,9.2853]
[1724811334554,0.6425609,2450.2,2450.1,9.2853]
[1724811334755,7.8537539,2450.2,2450.1,9.2853]
[1724811334953,7.211193,2450.2,2450.1,9.2853]
[1724811335188,0.55,2450.4,2450.1,9.2853]
[1724811335189,10.661406,2450.3,2450.1,9.2853]
[1724811335386,6.254234,2450.3,2450.1,9.2853]
[1724811335608,0.6804234,2450.2,2450.1,9.2853]
[1724811335750,4.2251654,2450.2,2450.1,9.2853]
[1724811336593,3.2345614,2450.2,2450.1,9.2853]
[1724811336754,2.554138,2450.2,2450.1,9.2853]
[1724811336956,6.147836,2450.3,2450.1,9.2853]
[1724811337198,6.722841,2450.3,2450.1,9.2853]
[1724811338356,0.53274762,2450.2,2450.0,600.55520506]
[1724811338592,48.20284586,2450.1,2450.0,600.55520506]
[1724811338763,1.47555886,2450.1,2450.0,609.89450506]
[1724811338955,0.42704759,2450.3,2450.0,609.89450506]
[1724811339158,7.44,2450.5,2450.0,609.89450506]
[1724811339159,0.02898136,2450.1,2450.0,609.89450506]
[1724811339353,7.44,2450.5,2450.1,9.3393]
[1724811340381,0.42702111,2450.8,2450.2,9.22741555]
[1724811340574,2.0,2451.7,2450.3,9.22739753]
[1724811340779,1.37095086,2451.7,2450.5,9.1458]
[1724811340971,1.37095086,2451.7,2450.7,9.1458]
[1724811340972,0.42695086,2451.7,2450.7,9.1458]
[1724811341168,2.0,2452.3,2450.8,9.2273804]
[1724811341396,2.85257149,2452.3,2451.0,9.1458]
[1724811341602,2.42689475,2452.3,2451.2,9.0662]
[1724811341804,0.34985456,2452.7,2451.3,9.14776438]